Cogmind - Beta 9.1 @@@ ROGUE MODE // 2019.11.04 @ 20:21:36 Player: fartblaster Result: Destroyed by Y-45 Defender with Beam Rifle Performance ------------- Evolutions (2) 1000 Regions Visited (5) 1000 Robots Destroyed (39) 195 Value Destroyed (956) 956 Prototype IDs (1) 20 Alien Tech Used (0) 0 Bonus (300) 300 TOTAL SCORE: 3471 Bonus ------- Aligned with FarCom 300 Cogmind --------- Core Integrity 0/550 Matter 500/500 Energy 99/100 System Corruption 2% Temperature Cool (9) Location -8/Materials Parts ------- Power (1) Propulsion (4) Utility (4) High-capacity Storage Unit High-capacity Matter Pod Weapon (2) Inventory (12) Deuterium Engine Light Nuclear Core Light Nuclear Core Datajack Peak State ------------ Power Deuterium Engine Propulsion Light Treads Light Treads Utility Improved Heat Sink High-capacity Storage Unit Structural Scanner Experimental Sensor Array Weapon Autogun High-powered Shotgun Inventory Ion Engine Light Ion Engine Light Nuclear Core Humpback High-capacity Matter Pod EM Pulse Cannon Heavy Assault Rifle Shock Bomb Launcher Grenade Launcher Datajack Improved Datajack [Rating: 23] Favorites ----------- Power Light Nuclear Core Engine Ion Engine Power Core Light Nuclear Core Propulsion Light Treads Treads Light Treads Leg Aluminum Leg Utility High-capacity Storage Unit Device Structural Scanner Storage High-capacity Storage Unit Weapon Autogun Energy Gun EM Shotgun Energy Cannon EM Pulse Cannon Ballistic Gun Autogun Launcher Shock Bomb Launcher Special Melee Weapon Improved Datajack Build | -11 -10 -10 -10 -9 -8 ------- Run | Scr Mat Min Exi Min Mat Slots Evolved 4 | . . . . . 4 Power . | . . . . . . Propulsion 2 | . . . . . 2 Utility 2 | . . . . . 2 Weapon . | . . . . . . Parts Attached 41 | 7 8 1 . . 25 Power 7 | 1 2 1 . . 3 Engine 6 | 1 2 . . . 3 Core 1 | . . 1 . . . Reactor . | . . . . . . Propulsion 5 | 2 . . . . 3 Treads 2 | 2 . . . . . Leg 3 | . . . . . 3 Wheel . | . . . . . . Hover . | . . . . . . Flight . | . . . . . . Utility 9 | 1 3 . . . 5 Device 6 | . 2 . . . 4 Storage 3 | 1 1 . . . 1 Processor . | . . . . . . Hackware . | . . . . . . Protection . | . . . . . . Artifact . | . . . . . . Weapon 20 | 3 3 . . . 14 Energy Gun 4 | 2 1 . . . 1 Energy Cannon 1 | . . . . . 1 Ballistic Gun 11 | 1 2 . . . 8 Ballistic Cannon . | . . . . . . Launcher 3 | . . . . . 3 Special Weapon . | . . . . . . Impact Weapon . | . . . . . . Slashing Weapon . | . . . . . . Piercing Weapon . | . . . . . . Special Melee Weapon 1 | . . . . . 1 Unidentified Prototypes 1 | . . . . . 1 Parts Lost 22 | . 1 . . . 21 Power 2 | . . . . . 2 Propulsion 5 | . . . . . 5 Utility 6 | . 1 . . . 5 Weapon 9 | . . . . . 9 Highest Loss Streak 6 | . 1 . . . 6 Average Slot Usage (%) 90 | . 96 100 100 100 67 Engine 4 | . 14 2 . . 7 Core 7 | . . 11 14 14 . Treads 21 | . 28 28 28 28 3 Leg 1 | . . . . . 5 Device 15 | . 11 14 14 14 23 Storage 12 | . 14 14 14 14 10 Energy Gun 10 | . 12 14 14 14 . Ballistic Gun 13 | . 15 14 14 14 9 Naked Turns . | . . . . . . Heaviest Build 53 | 13 44 44 44 44 53 Greatest Support 40 | 40 40 40 40 40 40 Greatest Overweight (x) 17 | . 1 1 1 1 17 Average Overweight (x) 1 | . . 1 1 1 4 Largest Inventory Capacity 12 | 6 12 12 12 12 12 Average Capacity 11 | 5 8 12 12 12 12 Most Carried 12 | 3 7 9 11 12 12 Average Carried 9 | 1 6 8 10 11 9 Final Capacity 12 | 6 12 12 12 12 12 Final Carried 12 | 2 7 9 11 12 4 Class Distribution -------------------- 80% | Mutant 16% | Skirmisher Dominant Class ---------------- Mutant | -10/Materials Mutant | -10/Mines Mutant | -10/Exiles Mutant | -9/Mines Skirmisher | -8/Materials Resources | -11 -10 -10 -10 -9 -8 ----------- Run | Scr Mat Min Exi Min Mat Matter Collected 1204 | 245 264 214 . . 481 Remotely 197 | . 197 . . . . Salvage Created 1443 | . 469 222 . . 752 Parts 76 | . 24 16 . . 36 Haulers Intercepted 1 | . . . . . 1 Recyclers Shooed 2 | . 2 . . . . Parts Field Recycled . | . . . . . . Retrieved Matter . | . . . . . . Parts Self-Destructed . | . . . . . . Prevented . | . . . . . . Kills | -11 -10 -10 -10 -9 -8 ------- Run | Scr Mat Min Exi Min Mat Combat Hostiles Destroyed 25 | . 10 5 . . 10 Melee 1 | . . 1 . . . Guns 20 | . 10 4 . . 6 AOE 4 | . . . . . 4 Classes Destroyed 9 | . 4 . . . 5 Worker 6 | . 1 . . . 5 Builder 1 | . . . . . 1 Hauler 1 | . . . . . 1 Recycler 4 | . 2 1 . . 1 Watcher 2 | . . . . . 2 Swarmer 9 | . 5 3 . . 1 Grunt 12 | . 5 2 . . 5 Sentry 1 | . . . . . 1 Hunter 3 | . . . . . 3 Best Kill Streak 5 | . 5 3 . . 4 Combat Bots Only 3 | . 3 3 . . 2 Max Kills in Single Turn 4 | . 1 1 . . 4 Gunslinging . | . . . . . . Exploded 1 | . . . . . 1 Melee 1 | . . 1 . . . Uniques/NPCs Destroyed . | . . . . . . Combat | -11 -10 -10 -10 -9 -8 -------- Run | Scr Mat Min Exi Min Mat Damage Taken 2792 | . 424 162 . . 2206 Core 657 | . 64 31 . . 562 Absorbed by Shields . | . . . . . . Core Remaining (%) 81 | 100 . . . 62 . Volleys Fired 116 | . 31 11 . . 74 Largest 2 | . 2 2 . . 2 Hottest 88 | . 68 68 . . 88 Shots Fired 173 | . 60 16 . . 97 Gun 147 | . 60 16 . . 71 Cannon 11 | . . . . . 11 Launcher 15 | . . . . . 15 Special . | . . . . . . Kinetic 115 | . 33 11 . . 71 Thermal . | . . . . . . Explosive 2 | . . . . . 2 Electromagnetic 56 | . 27 5 . . 24 Robot Hit Streak 11 | . 8 10 . . 11 Robot Miss Streak 5 | . 4 1 . . 5 Penetration Max . | . . . . . . Secondary Targets 2 | . 2 . . . . Max Gunslinging Chain 1 | . 1 . . . . Shots Hit Robots 115 | . 33 14 . . 68 Core Hits 70 | . 23 8 . . 39 Critical Hits . | . . . . . . Critical Kills . | . . . . . . Critical Parts Destroyed . | . . . . . . Melee Attacks 5 | . . . . . 5 Impact . | . . . . . . Slashing . | . . . . . . Piercing . | . . . . . . Sneak Attacks . | . . . . . . Combat Hostiles . | . . . . . . Follow-up Attacks . | . . . . . . Damage Inflicted 3081 | . 451 178 . . 2452 Guns 1329 | . 451 177 . . 701 Cannons 302 | . . . . . 302 Explosions 1438 | . . . . . 1438 Melee . | . . . . . . Ramming 12 | . . 1 . . 11 Kinetic 1001 | . 180 120 . . 701 Thermal 929 | . . . . . 929 Explosive 154 | . . . . . 154 Electromagnetic 985 | . 271 57 . . 657 Impact . | . . . . . . Slashing . | . . . . . . Piercing . | . . . . . . Highest Corruption 2 | . . . . . 2 Average Corruption 2 | . . . . . 2 Corruption Purged . | . . . . . . Effects 3 | . . . . . 3 Energy Discharges 2 | . . . . . 2 Data Loss (minor) 1 | . . . . . 1 Overload Shots . | . . . . . . Overflow Damage 369 | . . . . . 369 Projectiles 22 | . . . . . 22 Explosions 347 | . . . . . 347 Melee . | . . . . . . Knockbacks . | . . . . . . Impact . | . . . . . . Kinetic . | . . . . . . Secondary . | . . . . . . Self-Inflicted Damage 40 | . . . . . 40 Shots 5 | . . . . . 5 Rammed 4 | . 1 1 . . 2 Targets Rammed 4 | . 1 1 . . 2 Kicked . | . . . . . . Crushed . | . . . . . . Highest Temperature 94 | . 94 74 . . 26 Average Temperature 30 | . 33 27 . . 10 Received Heat Transfer 570 | . 156 27 . . 387 Siege Activations . | . . . . . . Robots Corrupted . | . . . . . . Combat Hostiles . | . . . . . . Parts Fried 5 | . . . . . 5 Impact Corruptions . | . . . . . . Robots Melted . | . . . . . . Combat Hostiles . | . . . . . . Parts Melted 1 | . . . . . 1 Heat Transferred 650 | . . . . . 650 Parts Sabotaged . | . . . . . . Parts Stolen . | . . . . . . Parts Stripped . | . . . . . . Power Chain Reactions . | . . . . . . Missiles Intercepted . | . . . . . . Alert | -11 -10 -10 -10 -9 -8 ------- Run | Scr Mat Min Exi Min Mat Peak Influence 235 | . 125 103 . . 235 Average Influence 39 | . 42 67 . . 53 Maximum Alert Level 1 | . . . . . 1 Low Security (%) 96 | . . . . . . Level 1 3 | . . . . . . Level 2 . | . . . . . . Level 3 . | . . . . . . Level 4 . | . . . . . . Level 5 . | . . . . . . High Security . | . . . . . . Max Security . | . . . . . . Squads Dispatched 3 | . 1 . . . 2 Investigation 3 | . 1 . . . 2 Extermination . | . . . . . . Reinforcement . | . . . . . . Assault . | . . . . . . Garrison . | . . . . . . Intercept . | . . . . . . Construction Impeded . | . . . . . . Haulers Reinforced . | . . . . . . Stealth | -11 -10 -10 -10 -9 -8 --------- Run | Scr Mat Min Exi Min Mat Distress Signals 2 | . . . . . 2 Communications Jammed . | . . . . . . Distress Signals . | . . . . . . Times Spotted 44 | . 14 5 . . 25 Peak Tracking Total 6 | . 5 3 . . 6 Tactical Retreats 4 | . 2 1 . . 1 Traps | -11 -10 -10 -10 -9 -8 ------- Run | Scr Mat Min Exi Min Mat Traps Triggered 1 | . 1 . . . . Indirectly . | . . . . . . Trap Hack Attempts . | . . . . . . Triggered . | . . . . . . Disarmed . | . . . . . . Reprogrammed . | . . . . . . Reused . | . . . . . . Traps Extracted . | . . . . . . Installed . | . . . . . . Triggered 1 | . . . . . 1 Machines | -11 -10 -10 -10 -9 -8 ---------- Run | Scr Mat Min Exi Min Mat Machines Disabled 7 | . . 1 . . 6 Max in Single Turn 6 | . . 1 . . 6 Machines Sabotaged . | . . . . . . Garrisons Compromised . | . . . . . . Overloaded Fab Kills . | . . . . . . Fab Network Shutdowns . | . . . . . . Hacking | -11 -10 -10 -10 -9 -8 --------- Run | Scr Mat Min Exi Min Mat Machines Accessed 3 | . 2 . 1 . . Terminals 2 | . 2 . . . . Fabricators . | . . . . . . Repair Stations . | . . . . . . Recycling Units . | . . . . . . Scanalyzers . | . . . . . . Garrison Access . | . . . . . . Total Hacks 10 | . 2 . 8 . . Successful 10 | . 2 . 8 . . Failed . | . . . . . . Catastrophic . | . . . . . . Database Lockouts . | . . . . . . Manual . | . . . . . . Terminals 2 | . 2 . . . . Fabricators . | . . . . . . Repair Stations . | . . . . . . Recycling Units . | . . . . . . Scanalyzers . | . . . . . . Garrison Access . | . . . . . . Terminal Hacks 10 | . 2 . 8 . . Record 10 | . 2 . 8 . . Fabricator Hacks . | . . . . . . Repair Station Hacks . | . . . . . . Recycling Unit Hacks . | . . . . . . Scanalyzer . | . . . . . . Garrison Access Hacks . | . . . . . . Unauthorized Hacks . | . . . . . . Terminals . | . . . . . . Fabricators . | . . . . . . Repair Stations . | . . . . . . Recycling Units . | . . . . . . Scanalyzers . | . . . . . . Garrison Access . | . . . . . . Data Cores Recovered . | . . . . . . Used . | . . . . . . Hacking Detections 2 | . 2 . . . . Full Trace Events . | . . . . . . Feedback Events . | . . . . . . Feedback Blocked . | . . . . . . Robot Schematics Acquired . | . . . . . . Robots Built . | . . . . . . Matter . | . . . . . . Time . | . . . . . . Total Robot Build Rating . | . . . . . . Part Schematics Acquired . | . . . . . . Parts Built . | . . . . . . Matter . | . . . . . . Time . | . . . . . . Total Part Build Rating . | . . . . . . Parts Repaired . | . . . . . . Time . | . . . . . . Parts Recycled . | . . . . . . Recycled Matter . | . . . . . . Retrieved Matter . | . . . . . . Retrieved Components . | . . . . . . Parts Scanalyzed . | . . . . . . Part Schematics Acquired . | . . . . . . Parts Damaged . | . . . . . . Bothacking | -11 -10 -10 -10 -9 -8 ------------ Run | Scr Mat Min Exi Min Mat Used RIF Installer . | . . . . . . Robots Hacked 1 | . . . . . 1 Non-combat . | . . . . . . Combat 1 | . . . . . 1 Robot Hacks Applied 2 | . . . . . 2 parse_system 2 | . . . . . 2 Relay Couplers Released . | . . . . . . Robots Rewired . | . . . . . . Allies Hacked . | . . . . . . Hacks Repelled . | . . . . . . Allies | -11 -10 -10 -10 -9 -8 -------- Run | Scr Mat Min Exi Min Mat Total Allies . | . . . . . . Largest Group . | . . . . . . Highest-Rated Group . | . . . . . . Highest-Rated Ally . | . . . . . . Total Orders . | . . . . . . Ally Attacks . | . . . . . . Total Damage . | . . . . . . Kills . | . . . . . . Allies Corrupted . | . . . . . . Allies Melted . | . . . . . . Intel | -11 -10 -10 -10 -9 -8 ------- Run | Scr Mat Min Exi Min Mat Robot Analysis Total . | . . . . . . Derelict Logs Recovered 3 | . . 1 . 2 . Drone Launches . | . . . . . . Drone Recoveries . | . . . . . . Exploration | -11 -10 -10 -10 -9 -8 ------------- Run | Scr Mat Min Exi Min Mat Turns Passed 5339 | 116 920 629 1377 882 1415 Spaces Moved 2524 | 67 471 329 764 482 411 Core 45 | 4 . . . . 41 Treads 2226 | 63 471 329 764 482 117 Legs 253 | . . . . . 253 Wheels . | . . . . . . Hover . | . . . . . . Flight . | . . . . . . Fastest Speed 50 | 50 160 180 180 180 150 Average Speed 192 | 153 167 180 180 180 276 Slowest Speed 900 | 160 180 180 180 180 900 Overloaded Moves . | . . . . . . Propulsion Burnouts . | . . . . . . Robots Hopped . | . . . . . . Cave-ins Triggered 1 | . . . . . 1 Exploration Rate (%) 61 | 4 78 67 92 83 42 Regions Visited 5 Branch Regions 3 Pre-discovered Areas 1 | . . . 1 . . Known Exits Taken . | . . . . . . Unknown Exits Taken 5 | 1 1 1 1 1 . Scrap Searched . | . . . . . . Spaces Dug . | . . . . . . Terrain Destroyed 49 | . . . . . 49 Melee . | . . . . . . Projectile . | . . . . . . AOE 49 | . . . . . 49 Actions | -11 -10 -10 -10 -9 -8 --------- Run | Scr Mat Min Exi Min Mat Total 2835 | 77 545 352 766 497 598 Wait 114 | 1 27 7 2 15 62 Move 2519 | 66 470 328 763 481 411 Hop . | . . . . . . Pick Up 26 | 3 6 3 1 1 12 Fast Attach 11 | 5 2 . . . 4 Attach 13 | 1 . . . . 12 Detach . | . . . . . . Swap 17 | 1 6 1 . . 9 Drop 10 | . 2 1 . . 7 Fire 116 | . 31 11 . . 74 Melee 5 | . . . . . 5 Ram . | . . . . . . Kick 2 | . . . . . 2 Crush 2 | . 1 1 . . . Escape Stasis . | . . . . . . Rewire . | . . . . . . Trap . | . . . . . . Miscellaneous . | . . . . . . Route ------- -11/Scrapyard -10/Materials (discovered 3 exits: [*Mat] / [*Min x2]) -10/Mines (discovered 2 exits: [*Mat] / *Exi) -10/Exiles (discovered 2 exits: [*Min x2]) -9/Mines -8/Materials (discovered 1 exit: Fac) History --------- Turn | Location | Event 8 | -11/Scrapyard | Discovered new exit (range 14) 117 | -11/Scrapyard | Entered Materials 305 | -10/Materials | Build established: Mutant 504 | -10/Materials | Discovered new exit (range 8) 566 | -10/Materials | Discovered new exit (range 5) 996 | -10/Materials | Discovered new exit (range 8) 1037 | -10/Materials | Entered Mines 1081 | -10/Mines | Discovered new exit (range 9) 1259 | -10/Mines | Found a damaged Exp. Sensor Array with a note attached 1283 | -10/Mines | Found Prototype Device 1311 | -10/Mines | Learned Materials emergency access door positions 1654 | -10/Mines | Deemed a non-threat by the Exiles lab entrance 1656 | -10/Mines | Discovered new exit (range 5) 1666 | -10/Mines | Entered Exiles 1704 | -10/Exiles | Discovered new exit (range 14) 1762 | -10/Exiles | Met 8R-AWN 1783 | -10/Exiles | Met EX-HEX 1888 | -10/Exiles | Met EX-DEC 2008 | -10/Exiles | Learned location of Zion (-6) 2225 | -10/Exiles | Discovered new exit (range 14) 2363 | -10/Exiles | Visited The Gauntlet 2645 | -10/Exiles | Met EX-BIN 2679 | -10/Exiles | Aligned with FarCom system 2681 | -10/Exiles | Given EX-Vault access code 3043 | -10/Exiles | Entered Mines 3297 | -9/Mines | Assisted by bots powering up and referring to "LRC-V3" 3423 | -9/Mines | Learned Materials terminal intel 3904 | -9/Mines | Learned 2 Materials zone layouts 3913 | -9/Mines | Discovered new exit (range 7) 3925 | -9/Mines | Entered Materials 3925 | -8/Materials | Evolved 4 slots: Propulsion x2, Utility x2 3926 | -8/Materials | Identified exit to Factory 3926 | -8/Materials | Identified Exp. Sensor Array 3928 | -8/Materials | Loaded intel: 12 terminal locations 4677 | -8/Materials | Build established: Skirmisher 5124 | -8/Materials | Crushed by falling debris 5155 | -8/Materials | Lost 6 parts (1n2u3w) 5261 | -8/Materials | Core integrity fell below 50% 5307 | -8/Materials | Lost 3 parts (1p2w) 5331 | -8/Materials | Core integrity fell below 20% 5340 | -8/Materials | Destroyed by Y-45 Defender with Beam Rifle Last Messages --------------- 05263_ Particle Gun destroyed. 05271_ Critical hit. 05271_ Shock Bomb Launcher destroyed. 05276_ Ion Engine destroyed. 05289_ Jacked S-10 Pest... >>parse_system Reading system data... 05292_ Jacked S-10 Pest... >>parse_system Reading system data... 05315_ System corrupted: Energy discharge (-30). 05319_ Jacked S-10 Pest... 05320_ Slammed into S-10 Pest. 05323_ Carbon-fiber Leg destroyed. 05328_ Imp. Datajack destroyed. 05332_ S-10 Pest destroyed. 05334_ Imp. Heat Sink destroyed. 05335_ K-01 Serf collects debris. 05337_ R-06 Scavenger collects Flight Unit. 05338_ K-01 Serf collects debris. Map ----- +----------------------------------------------------+ | ???????????????????????????????????# ???????????? | | ???????????????????????????????????# ???????????? | | ???????????????????????????????????# ???????????? | | ??????????????????????????########## ??????????? | | ?????T????????????????????# # ??????????? | | ??????????????????????????# # ??????????? | | ??????????????????????????# # ########??? | | ??????????????????????????# # #??? | | ??????????????????????????# + #??? | | ??????????????????????????# # #??? | | ??????????????????????????# # #??? | | ??????????????????????????# # #??? | | ??????????????????????????# # *** #??? | | ??????????????????????????########## ** #### | | ???????????????????????????????????# ** | | ???????????????????????????????????# | | ???????????????????????????????????# | | ???????????????????###??????######## #### | | ?????????T?Y???????# ??????# # #### | | ???????????????????# ?????# # """ # ? | | ???????????????????# ""?????# " " # """ + ?? | | ???????????????????? "Y ????# "T" # """ #??? | | ?????????????????????""r????# """ # #??? | | ?????????????????????? r???# # ##?? | | ?????????????????#######/######+#### != #?? | | ?????????? @ s u = #?? | | ?????????? r%sY #?? | | ?????????? u skY #?? | | ???????????#############;################# #?? | | ?????????????????????? ????????????????# #?? | | ????????????????????# ?""???#?????????# #?? | | ????????????????????# ?T"???????#?????# #?? | | ????????????????????# ?""???#########?# #?? | | ????????????????????#! ?????? ?# #?? | | ????????????????????####??????? ] * ## #?? | | ??????????????????????????????# ## #?? | | ?????????????? ??????????????# ! ## #?? | | ???????????????????????????? ?# g ## ### | | ????????????????????#?????????# """ """ # | | ??????????????????????????? ??? """ """ # | | ??????????????????????? ? ?? ????""g""??# | | ?????????????? ?????######+########g##### ###### | | ????????????????? ! =* #????? | | ????????????????? = !% #????? | | ?????????????? ?? %= == #????? | | ????????????????#??+############## #???? | | ????????????????????????#?# # #????? | | ??????????????????? ????#?#"" #% #???? | | ???????????#?????? ?????#?# / % ####?? | | ????????????????????????#?# " # %= ##???? | +----------------------------------------------------+ Best States ------------- Heat Dissipation 45 Energy Generation 14 Energy Capacity 275 Matter Stores 500 Matter Capacity 500 Sight Range 16 Robot Scan Range 30 Terrain Scan Range 20 Terrain Scan Density 10 Evasion (%) 40 Recoil Reduction 2 Item Schematics ----------------- None Robot Schematics ------------------ None Fabricated ------------ Nothing Alien Tech Used ----------------- None Achievements -------------- Librarian Challenges ------------ None Game ------ Seed ShieldHoverCoupler Manual? 0 Play Time 00:44:52 Cumulative 10.4 hours Start 2019.11.04 @ 19:29:34 End 2019.11.04 @ 20:21:36 Sessions 1 Manual Loads 0 Difficulty Rogue Special Mode None Game No. 27 Rogue 27 Adventurer 0 Explorer 0 Win Type - Total 0 Types 0/0/0/0/0/0/0 Lore% 7 Gallery% 15 Achievement% 10 Wizard Run 0 Options --------- ASCII 0 Keyboard 1 Movement Numpad Keybinds 0 Fullscreen 1 Font 18/SmallcapsGlow Map View 76x50 Tactical HUD 1 Map Filters NONE Filters NONE Steam 1 RUN: 3eea6732-2082-4fd3-81d1-1dbf3825a344